bitfinex-derivatives/quotes_SOLF0:USTF0_20250623
["timestamp","ask_amount","ask_price","bid_price","bid_amount"]
[1750689700300,43.42,134.91,134.85,43.62]
[1750689700596,12.25564176,134.9,134.83,2.3591]
[1750689700800,12.25564176,134.88,134.8,12.25564176]
[1750689700991,43.42,134.87,134.8,12.25564176]
[1750689701188,12.25564176,134.86,134.79,683.38]
[1750689701592,43.42,134.87,134.84,7.4126]
[1750689701890,43.42,134.87,134.8,12.25564176]
[1750689702594,43.42,134.87,134.79,683.38]
[1750689702792,43.42,134.87,134.8,12.25564176]
[1750689702992,50.8317,134.87,134.82,7.4139]
[1750689703191,50.8317,134.87,134.8,12.25564176]
[1750689704091,50.8317,134.87,134.83,7.4131]
[1750689704297,7.4119,134.86,134.79,695.63564176]
[1750689704602,7.4119,134.86,134.82,7.4136]
[1750689705293,43.42,134.87,134.79,695.63564176]
[1750689705602,43.42,134.88,134.81,12.25564176]
[1750689705797,55.67564176,134.88,134.81,12.25564176]
[1750689706099,7.4122,134.86,134.82,7.4137]
[1750689706304,55.67564176,134.88,134.81,12.25564176]
[1750689706491,57.46854176,134.93,134.85,12.25564176]
[1750689706696,55.67564176,134.93,134.85,12.25564176]
[1750689707194,43.42,134.93,134.87,12.25564176]
[1750689707993,43.42,134.93,134.9,7.4094]
[1750689708197,43.42,134.93,134.87,12.25564176]
[1750689708997,43.42,134.93,134.86,2.4282]
[1750689709195,43.42,134.93,134.87,12.25564176]
[1750689709598,43.42,134.93,134.9,7.409]
[1750689709804,43.42,134.93,134.87,12.25564176]
[1750689710298,43.42,134.93,134.91,7.4087]
[1750689710703,43.42,134.93,134.92,7.4085]
[1750689710902,7.407,134.95,134.89,12.25564176]
[1750689711105,7.4076,134.94,134.89,12.25564176]
[1750689711309,12.25564176,134.95,134.9,7.4093]
[1750689711493,7.4076,134.94,134.9,7.4093]
[1750689711697,7.4076,134.94,134.87,55.67564176]
[1750689712401,7.407,134.95,134.89,12.25564176]
[1750689712599,43.42,134.97,134.89,12.25564176]
[1750689712794,7.4063,134.96,134.93,7.4077]
[1750689712991,43.42,134.97,134.91,55.67564176]
[1750689713193,43.42,134.97,134.93,12.25564176]
[1750689713394,683.58,135.0,134.93,12.25564176]
[1750689713706,683.58,135.0,134.95,7.4064]
[1750689713903,683.58,135.0,134.93,12.25564176]
[1750689714104,7.405,134.99,134.95,7.4065]
[1750689714699,7.4053,134.98,134.94,7.4072]
[1750689715004,7.4053,134.98,134.92,19.39224176]
[1750689715210,7.4058,134.97,134.92,7.1366]
[1750689715408,683.58,135.0,134.92,19.39224176]
[1750689715705,683.58,135.0,134.94,7.407]
[1750689715896,7.4055,134.98,134.92,19.39224176]
[1750689716101,683.58,135.0,134.92,19.39224176]
[1750689716616,683.58,135.0,134.86,12.25564176]
[1750689716617,12.25564176,134.95,134.86,12.25564176]
[1750689716812,12.25564176,134.95,134.89,7.4101]
[1750689716813,7.408,134.93,134.89,7.4101]
[1750689717509,43.4,134.94,134.89,7.4101]
[1750689718406,7.4082,134.93,134.89,7.4101]
[1750689718608,43.4,134.94,134.88,7.4104]
[1750689718807,12.25564176,134.91,134.85,43.4]
[1750689719506,12.25564176,134.91,134.84,7.1]
[1750689720407,7.4105,134.89,134.86,7.4116]
[1750689720607,12.25564176,134.91,134.86,7.4116]
[1750689721008,7.4099,134.9,134.86,7.4116]
[1750689721307,12.25564176,134.91,134.84,7.1]
[1750689721507,12.25564176,134.92,134.84,19.35564176]
[1750689721908,12.25564176,134.92,134.86,7.4114]
[1750689722114,12.25564176,134.92,134.84,19.35564176]
[1750689722504,12.25564176,134.92,134.87,7.4108]
[1750689723206,7.4101,134.9,134.87,7.4108]
[1750689724007,12.25564176,134.9,134.84,7.1]
[1750689724313,55.43564176,134.9,134.84,7.1]
[1750689724514,7.4108,134.88,134.85,7.4121]
[1750689724913,43.18,134.9,134.84,7.1]
[1750689725114,43.18,134.9,134.84,19.35564176]
[1750689725318,55.43564176,134.9,134.84,7.1]
[1750689725614,55.43564176,134.9,134.84,2.4439]
[1750689725818,55.43564176,134.9,134.82,55.65564176]
[1750689726014,12.25564176,134.88,134.82,43.4]
[1750689726215,43.18,134.9,134.82,55.65564176]
[1750689726416,55.43564176,134.9,134.82,55.65564176]
[1750689726617,7.4121,134.86,134.83,7.4132]
[1750689726921,55.43564176,134.9,134.82,55.65564176]
[1750689727117,7.411,134.88,134.82,55.65564176]
[1750689727822,7.411,134.88,134.84,7.4126]
[1750689728015,7.4113,134.87,134.84,7.4126]
[1750689728413,12.25564176,134.88,134.82,43.4]
[1750689728918,12.25564176,134.88,134.83,7.4132]
[1750689729321,7.4117,134.87,134.84,7.4128]
[1750689729723,7.4119,134.86,134.82,43.4]
[1750689730221,12.25564176,134.88,134.82,43.4]
[1750689730826,12.25564176,134.88,134.82,50.8137]
[1750689731121,12.25564176,134.86,134.81,2.3826]
[1750689731321,12.25564176,134.86,134.82,7.4136]
[1750689731525,7.4126,134.85,134.82,7.4136]
[1750689732025,7.4127,134.85,134.82,7.4136]
[1750689732419,7.4121,134.86,134.81,2.3826]
[1750689732822,7.4121,134.86,134.82,7.4136]
[1750689733024,7.4124,134.85,134.82,7.4136]
[1750689734128,7.412,134.86,134.83,7.4134]
[1750689735129,7.4124,134.85,134.82,7.4137]
[1750689735331,12.25564176,134.86,134.81,2.3826]
[1750689735728,7.4126,134.85,134.81,9.7967]
[1750689736028,55.45564176,134.86,134.81,2.3826]
[1750689736226,55.45564176,134.86,134.81,9.7966]
[1750689736419,55.45564176,134.86,134.81,2.3826]
[1750689736833,7.4132,134.84,134.81,9.7969]
[1750689737020,55.45564176,134.86,134.81,2.3826]
[1750689737331,43.2,134.86,134.81,2.3826]
[1750689737535,43.2,134.89,134.84,12.25564176]
[1750689737925,683.36,134.92,134.84,12.25564176]
[1750689738525,683.36,134.92,134.86,12.25564176]
[1750689738526,43.2,134.92,134.86,12.25564176]
[1750689739039,55.45564176,134.92,134.84,19.15135798]
[1750689739333,55.45564176,134.92,134.84,12.25564176]
[1750689739731,12.25564176,134.9,134.83,196.74]
[1750689740130,12.25564176,134.9,134.83,43.2]
[1750689740330,7.411,134.88,134.85,7.412]
[1750689740831,7.4113,134.87,134.84,7.4126]
[1750689741335,12.25564176,134.9,134.84,7.4126]
[1750689741636,7.411,134.88,134.85,7.4122]
[1750689741832,12.25564176,134.9,134.83,43.2]
[1750689742132,7.4119,134.86,134.83,43.2]
[1750689742332,12.25564176,134.88,134.83,43.2]
[1750689742537,12.25564176,134.88,134.81,9.27831622]
[1750689742728,7.4124,134.85,134.81,2.3826]
[1750689743134,7.4123,134.86,134.83,7.4132]
[1750689743734,43.2,134.88,134.81,2.3826]
[1750689744029,43.2,134.88,134.81,21.53395798]
[1750689744233,43.2,134.88,134.82,6.89571622]
[1750689744426,55.45564176,134.91,134.83,12.25564176]
[1750689744629,55.45564176,134.91,134.83,19.15135798]
[1750689744830,55.45564176,134.91,134.86,7.4114]
[1750689745238,55.45564176,134.91,134.83,12.25564176]
[1750689745430,7.4099,134.9,134.87,7.4112]
[1750689745633,55.45564176,134.91,134.84,43.2]
[1750689745932,7.4115,134.87,134.84,7.4126]
[1750689746633,2.0752,134.95,134.84,12.25564176]
[1750689746833,43.2,134.93,134.84,12.25564176]
[1750689747340,43.2,134.93,134.86,12.25564176]
[1750689747834,43.2,134.93,134.88,12.25564176]
[1750689748935,683.5,134.99,134.92,12.24608092]
[1750689749237,7.4063,134.97,134.93,7.4077]
[1750689750235,683.5,134.99,134.89,45.5854]
[1750689750537,12.2476858,134.98,134.9,12.2476858]
[1750689751634,7.4072,134.95,134.92,7.4084]
[1750689751833,12.2476858,134.98,134.9,12.2476858]
[1750689752034,12.2476858,134.98,134.89,43.2]
[1750689752035,12.2476858,134.96,134.89,43.2]
[1750689752231,7.4079,134.94,134.88,12.2476858]
[1750689752630,43.2,134.95,134.91,12.2476858]
[1750689752835,640.3,134.99,134.93,12.2476858]
[1750689753044,44.9723,135.01,134.95,12.2476858]
[1750689753836,7.405,134.99,134.95,19.6540858]
[1750689754146,44.9723,135.01,134.95,12.2476858]
[1750689754355,44.9723,135.01,134.95,19.6541858]
[1750689754546,44.9723,135.01,134.95,12.2476858]
[1750689755038,43.18,135.01,134.95,12.2476858]
[1750689755439,43.18,135.01,134.92,2.2692]
[1750689755640,43.18,135.01,134.94,12.2476858]
[1750689756036,12.2476858,135.0,134.92,14.5168858]
[1750689756335,43.18,135.01,134.94,12.2476858]
[1750689756539,7.4052,134.99,134.96,7.4063]
[1750689757145,7.4053,134.98,134.95,7.4066]
[1750689757443,7.4053,134.98,134.94,12.2476858]
[1750689757644,7.4058,134.97,134.95,7.4068]
[1750689757937,55.4276858,135.01,134.95,7.4068]
[1750689758143,55.4276858,135.01,134.96,7.4062]
[1750689758347,7.4049,134.99,134.96,7.4062]
[1750689758835,7.4044,135.0,134.97,7.4057]
[1750689759039,43.18,135.01,134.94,12.2476858]
[1750689759345,43.18,135.01,134.97,7.4053]
[1750689759540,43.18,135.01,134.94,55.2076858]
[1750689759941,43.18,135.01,134.95,7.4066]
[1750689760347,55.4276858,135.01,134.94,42.96]
[1750689760547,7.4055,134.98,134.95,7.4068]
[1750689761345,7.4058,134.97,134.94,50.3672]
[1750689761540,7.4058,134.97,134.93,12.2476858]
[1750689761736,12.2476858,134.99,134.91,14.6962858]
[1750689762640,12.2476858,134.99,134.91,2.4486]
[1750689762846,7.4063,134.97,134.93,7.4077]
[1750689763041,7.4063,134.97,134.91,2.4486]
[1750689763242,12.2476858,134.99,134.91,2.4486]
[1750689763445,7.4066,134.96,134.93,7.4077]
[1750689763641,12.2476858,134.97,134.91,2.4486]
[1750689763843,22.22,135.03,134.88,2.271]
[1750689763844,12.2476858,134.95,134.88,2.271]
[1750689764044,42.96,134.96,134.86,12.2476858]
[1750689764045,12.2476858,134.93,134.86,12.2476858]
[1750689764547,7.4091,134.91,134.86,12.2476858]
[1750689764743,7.4091,134.91,134.85,45.2881]
[1750689765047,7.4097,134.9,134.85,45.2881]
[1750689765446,7.4093,134.91,134.88,7.4104]
[1750689765646,12.2476858,134.93,134.85,45.2881]
[1750689766048,7.4093,134.91,134.88,7.4104]
[1750689766348,12.2476858,134.93,134.85,45.2881]
[1750689766549,7.408,134.93,134.86,12.2476858]
[1750689766842,42.96,134.94,134.86,12.2476858]
[1750689767037,12.2476858,134.93,134.86,12.2476858]
[1750689767649,12.2476858,134.93,134.88,7.4103]
[1750689768344,12.2476858,134.93,134.87,7.411]
[1750689768549,42.96,134.94,134.87,7.411]
[1750689768550,12.2476858,134.91,134.87,7.411]
[1750689768740,7.41,134.9,134.87,7.411]
[1750689769347,7.41,134.9,134.85,45.2881]
[1750689769646,42.96,134.94,134.87,12.2476858]
[1750689769848,12.2476858,134.93,134.85,57.5357858]
[1750689770048,7.4093,134.91,134.85,57.5357858]
[1750689770553,12.2476858,134.91,134.85,45.2881]
[1750689771055,7.41,134.9,134.85,45.2881]
[1750689771351,7.41,134.9,134.87,7.4109]
[1750689772056,7.41,134.9,134.85,45.2881]
[1750689772444,7.4103,134.89,134.85,45.2881]
[1750689772649,7.4103,134.89,134.86,7.4115]
[1750689772848,7.4108,134.88,134.86,7.4115]
[1750689773159,55.2276858,134.9,134.82,682.86]
[1750689773454,55.2276858,134.9,134.81,14.7544858]
[1750689773455,7.4121,134.86,134.81,2.5068]
[1750689773655,12.2476858,134.88,134.82,7.4137]
[1750689773849,12.2476858,134.88,134.81,14.7544858]
[1750689774059,55.2276858,134.9,134.81,14.7544858]
[1750689774258,42.98,134.9,134.83,12.2476858]
[1750689774551,7.4092,134.91,134.85,12.2476858]
[1750689774744,7.4092,134.91,134.88,7.4104]
[1750689775146,7.4088,134.92,134.88,7.4107]
[1750689775350,7.4088,134.92,134.86,16.9836858]
[1750689775854,7.4088,134.92,134.88,7.4104]
[1750689776054,7.4088,134.92,134.86,16.9836858]
[1750689777060,7.4088,134.92,134.88,7.4104]
[1750689777558,7.4088,134.92,134.89,7.4099]
[1750689778262,50.3882,134.93,134.9,7.4094]
[1750689778657,2.3471,134.96,134.89,12.2476858]
[1750689778658,7.4065,134.96,134.89,12.2476858]
[1750689778858,42.98,134.97,134.91,12.2476858]
[1750689779060,42.98,134.97,134.91,55.2276858]
[1750689779256,42.98,134.97,134.92,4.718]
[1750689779457,55.2276858,135.0,134.93,12.2476858]
[1750689779658,42.98,135.0,134.92,4.718]
[1750689779860,7.4056,134.98,134.94,7.4071]
[1750689780060,42.98,135.0,134.93,12.2476858]
[1750689780363,42.98,135.0,134.94,7.4073]
[1750689780657,12.2476858,134.98,134.92,2.2659]
[1750689780863,7.4066,134.96,134.93,7.4079]
[1750689781255,12.2476858,134.99,134.92,2.2659]
[1750689781456,7.4061,134.97,134.94,7.407]
[1750689781854,7.4066,134.96,134.93,7.4078]
[1750689782258,12.2476858,134.99,134.92,2.2659]
[1750689782458,7.4061,134.97,134.94,7.4071]
[1750689782659,12.2476858,134.99,134.92,2.2659]
[1750689783155,7.4061,134.97,134.94,7.4074]
[1750689783356,7.4061,134.97,134.92,2.2659]
[1750689783357,42.98,135.0,134.93,12.2476858]
[1750689783563,7.4049,134.99,134.96,7.4062]
[1750689785062,42.98,135.0,134.93,12.2476858]
[1750689785264,7.4053,134.98,134.95,7.4066]
[1750689785466,12.2476858,134.99,134.92,4.7155]
[1750689785868,42.98,135.0,134.93,12.2476858]
[1750689786264,50.3845,135.0,134.97,7.4057]
[1750689786464,42.76,135.03,134.95,12.2476858]
[1750689786665,42.76,135.03,134.95,55.0076858]
[1750689787261,42.76,135.03,134.97,12.2476858]
[1750689787660,7.4033,135.02,134.99,7.4044]
[1750689787866,42.76,135.03,134.99,7.4044]
[1750689788666,55.0076858,135.03,134.96,2.3593]
[1750689789665,42.76,135.03,134.97,12.2476858]
[1750689789968,50.1628,135.03,134.99,7.4041]
[1750689790268,50.1628,135.03,134.97,12.2476858]
[1750689790768,42.76,135.03,134.99,12.2476858]
[1750689791165,42.76,135.03,135.0,7.4039]
[1750689791166,50.1625,135.03,135.0,7.4039]
[1750689791466,42.76,135.03,135.0,7.4039]
[1750689791862,42.76,135.03,135.01,7.4036]
[1750689792058,640.06,135.05,134.99,12.2476858]
[1750689792261,7.4015,135.05,135.01,7.4035]
[1750689792463,42.76,135.06,135.01,7.4035]
[1750689792661,12.2476858,135.05,134.98,2.2775]
[1750689792866,12.2476858,135.03,134.96,2.3593]
[1750689793269,7.4047,134.99,134.96,9.7654]
[1750689793571,55.0076858,135.02,134.96,2.3593]
[1750689793769,7.4027,135.03,134.97,12.2476858]
[1750689793969,42.76,135.05,134.97,12.2476858]
[1750689794572,7.4028,135.03,135.0,7.4038]
[1750689794970,7.402,135.04,134.97,12.2476858]
[1750689795673,7.402,135.04,135.01,7.4032]
[1750689796070,42.76,135.05,135.03,7.402]
[1750689796470,42.76,135.05,134.99,12.2476858]
[1750689796674,50.1617,135.05,134.99,12.2476858]
[1750689796870,42.76,135.05,134.99,12.2476858]
[1750689797369,42.76,135.05,135.01,7.4031]
[1750689797370,7.4022,135.04,135.01,7.4031]
[1750689797568,42.76,135.05,134.98,2.4905]
[1750689797778,42.76,135.05,134.98,14.7381858]
[1750689798163,12.2476858,135.04,134.98,2.4905]
[1750689798372,12.2476858,135.02,134.91,9.11033993]
[1750689798575,26.3132,135.08,134.9,7.2234]
[1750689798576,12.2476858,134.97,134.9,7.2234]
[1750689798773,42.74,134.96,134.86,12.2476858]
[1750689799071,7.409,134.92,134.87,7.4109]
[1750689799284,12.2476858,134.94,134.86,12.2476858]
[1750689799466,12.2476858,134.94,134.86,19.6591858]
[1750689799670,12.2476858,134.94,134.85,42.74]
[1750689799671,12.2476858,134.92,134.85,42.74]
[1750689799874,54.9876858,134.95,134.87,12.2476858]
[1750689800076,7.4087,134.92,134.87,12.2476858]
[1750689800378,54.9876858,134.95,134.87,12.2476858]
[1750689800675,7.4089,134.92,134.88,7.4103]
[1750689800979,7.4089,134.92,134.88,7.4104]
[1750689801174,54.9876858,134.95,134.87,12.2476858]
[1750689801672,12.2476858,134.93,134.85,42.74]
[1750689801880,12.2476858,134.91,134.85,42.74]
[1750689802172,7.4106,134.89,134.86,7.4115]
[1750689803274,7.4107,134.88,134.86,7.4115]
[1750689803474,7.4107,134.88,134.85,50.1522]
[1750689804174,7.4104,134.89,134.86,7.4118]
[1750689804568,55.0076858,134.91,134.84,7.0961]
[1750689804768,12.2476858,134.89,134.84,4.7666]
[1750689804966,42.76,134.91,134.84,17.0142858]
[1750689805175,7.41,134.9,134.86,7.4115]
[1750689805477,42.76,134.91,134.86,7.4115]
[1750689805776,7.4102,134.89,134.86,7.4115]
[1750689805979,42.76,134.91,134.85,7.4121]
[1750689806474,42.76,134.91,134.86,7.4114]
[1750689807074,7.4105,134.89,134.86,7.4114]
[1750689807771,42.76,134.91,134.85,12.2476858]
[1750689808176,55.0076858,134.91,134.84,2.4767]
[1750689809773,55.0076858,134.91,134.86,7.4116]
[1750689809774,7.4105,134.89,134.86,7.4116]
[1750689809974,55.0076858,134.91,134.84,2.4767]
[1750689810473,7.4111,134.88,134.85,7.4121]
[1750689811177,7.4107,134.89,134.84,2.4767]
[1750689811379,42.76,134.91,134.84,2.4767]
[1750689811575,42.76,134.91,134.85,12.2476858]
[1750689811776,7.4099,134.9,134.87,7.411]
[1750689812577,50.1693,134.91,134.88,7.4106]
[1750689813386,50.1693,134.91,134.85,12.2476858]
[1750689813387,7.4096,134.9,134.87,7.411]
[1750689814279,7.4103,134.89,134.86,7.4113]
[1750689814689,55.0076858,134.91,134.86,7.4113]
[1750689815188,42.76,134.91,134.84,14.7243858]
[1750689815383,42.58,134.94,134.88,12.2476858]
[1750689815685,42.58,134.94,134.9,7.4093]
[1750689815885,7.4082,134.93,134.9,7.4093]
[1750689816280,7.4088,134.92,134.89,7.4099]
[1750689816484,42.58,134.94,134.88,12.2476858]
[1750689816888,7.408,134.93,134.88,17.0766858]
[1750689817278,42.58,134.94,134.88,17.0766858]
[1750689817481,639.92,134.96,134.9,12.2476858]
[1750689818091,639.92,134.96,134.92,7.4084]
[1750689818487,7.4066,134.96,134.92,7.4085]
[1750689818691,42.58,134.97,134.92,7.4085]
[1750689819491,7.4067,134.96,134.93,7.4079]
[1750689819791,42.58,134.97,134.9,12.2476858]
[1750689819987,7.407,134.95,134.9,12.2476858]
[1750689820493,7.407,134.95,134.92,7.4081]
[1750689820690,7.407,134.95,134.9,12.2476858]
[1750689820889,7.4066,134.96,134.9,12.2476858]
[1750689821090,7.4066,134.96,134.93,7.4076]
[1750689821486,7.4069,134.95,134.9,12.2476858]
[1750689821692,7.4069,134.95,134.92,7.4082]
[1750689822494,7.4066,134.96,134.93,7.4078]
[1750689823693,42.58,134.97,134.93,7.4078]
[1750689824202,7.4068,134.96,134.93,7.4078]
[1750689824401,42.58,134.97,134.92,7.4082]
[1750689824592,54.8276858,134.97,134.92,7.4082]
[1750689824797,54.8276858,134.97,134.88,17.0766858]
[1750689824996,12.2476858,134.95,134.88,17.0766858]
[1750689825297,54.8276858,134.97,134.88,17.0766858]
[1750689825498,7.4078,134.94,134.88,17.0766858]
[1750689825696,54.8276858,134.97,134.88,17.0766858]
[1750689826197,7.4079,134.94,134.91,7.409]
[1750689826494,7.4079,134.94,134.88,17.0766858]
[1750689826699,7.4069,134.95,134.88,17.0766858]
[1750689826901,54.8276858,134.97,134.88,17.0766858]
[1750689827304,7.4075,134.94,134.91,7.4086]
[1750689827700,54.8276858,134.97,134.88,17.0766858]
[1750689827900,7.4083,134.93,134.9,7.4091]
[1750689828301,7.4083,134.93,134.88,17.0766858]
[1750689828502,7.4086,134.92,134.9,7.4091]
[1750689829003,7.4099,134.9,134.87,42.58]
[1750689829212,54.8076858,134.93,134.84,699.7348858]
[1750689829504,12.2476858,134.91,134.84,47.3672]
[1750689830007,12.2476858,134.89,134.84,42.56]
[1750689830203,54.8076858,134.89,134.83,2.5015]
[1750689830700,54.8076858,134.89,134.81,54.8076858]
[1750689831304,7.4119,134.86,134.84,7.4128]
[1750689831602,42.56,134.89,134.84,7.4128]
[1750689832097,42.56,134.89,134.81,54.8076858]
[1750689832302,42.56,134.89,134.83,12.2476858]
[1750689832504,7.4107,134.88,134.83,12.2476858]
[1750689832701,7.4107,134.88,134.85,7.412]
[1750689832894,42.56,134.89,134.85,7.412]
[1750689833093,7.411,134.88,134.85,7.412]
[1750689833294,42.56,134.89,134.82,12.2476858]
[1750689833804,42.56,134.89,134.86,7.4116]
[1750689834104,7.4108,134.88,134.86,7.4116]
[1750689834303,7.4108,134.88,134.85,7.4121]
[1750689834802,12.2476858,134.91,134.82,12.2476858]
[1750689834997,12.2476858,134.89,134.82,12.2476858]
[1750689835394,7.4118,134.86,134.83,7.4131]
[1750689835801,7.4118,134.86,134.82,12.2476858]
[1750689836201,7.4118,134.86,134.83,7.4133]
[1750689836505,12.2476858,134.91,134.82,12.2476858]
[1750689836899,12.2476858,134.91,134.84,7.4124]
[1750689837306,12.2476858,134.91,134.85,7.4121]
[1750689837606,12.2476858,134.91,134.81,42.56]
[1750689837801,12.2476858,134.91,134.82,12.2476858]
[1750689838001,7.411,134.88,134.85,7.4121]
[1750689838705,12.2476858,134.89,134.86,7.4115]
[1750689838901,12.2476858,134.91,134.82,12.2476858]
[1750689839206,42.58,134.92,134.88,7.4104]
[1750689839508,7.4099,134.9,134.84,12.2476858]
[1750689839806,7.4099,134.9,134.88,7.4107]
[1750689840604,42.58,134.92,134.87,7.411]
[1750689841299,7.4099,134.9,134.87,7.411]
[1750689841502,42.58,134.92,134.84,12.2476858]
[1750689841905,7.4104,134.89,134.84,12.2476858]
[1750689842105,7.4104,134.89,134.86,7.4113]
[1750689842306,7.4104,134.89,134.84,12.2476858]
[1750689842805,7.4104,134.89,134.87,7.411]
[1750689843101,7.4104,134.89,134.86,7.4113]
[1750689843811,54.8276858,134.92,134.87,7.411]
[1750689844409,7.4103,134.89,134.87,7.411]
[1750689844905,12.2476858,134.9,134.83,9.11033993]
[1750689845107,12.2476858,134.9,134.82,21.35802573]
[1750689845611,12.2476858,134.9,134.82,12.2476858]
[1750689846000,7.412,134.86,134.84,7.4126]
[1750689846910,7.4115,134.87,134.85,7.4123]
[1750689847209,12.2476858,134.9,134.82,12.2476858]
[1750689847410,7.4122,134.86,134.82,12.2476858]
[1750689848009,7.4122,134.86,134.84,7.4126]
[1750689848311,7.4111,134.88,134.82,12.2476858]
[1750689848610,12.2476858,134.91,134.82,21.35802573]
[1750689848810,7.4111,134.88,134.82,21.35802573]
[1750689849012,12.2476858,134.91,134.82,21.35802573]
[1750689849208,12.2476858,134.91,134.86,7.4114]
[1750689851013,12.2476858,134.91,134.85,7.4122]
[1750689851407,7.4115,134.87,134.85,7.4122]
[1750689851712,12.2476858,134.91,134.82,21.35802573]
[1750689852115,7.411,134.88,134.82,21.35802573]
[1750689853613,7.4113,134.87,134.82,21.35802573]
[1750689853808,7.4113,134.87,134.85,7.4121]
[1750689854010,12.2476858,134.91,134.85,7.4121]
[1750689854210,7.4111,134.88,134.85,7.4121]
[1750689854615,7.4111,134.88,134.86,7.4117]
[1750689854913,7.4111,134.88,134.82,21.35802573]
[1750689855113,7.4111,134.88,134.85,7.4121]
[1750689855613,7.4116,134.87,134.84,7.4126]
[1750689855914,12.2476858,134.89,134.82,21.35802573]
[1750689856213,7.4113,134.87,134.82,8.04880088]
[1750689856413,8.04880088,134.9,134.84,8.04880088]
[1750689857015,7.411,134.88,134.85,7.412]
[1750689857815,8.04880088,134.88,134.82,9.11033993]
[1750689858015,50.42880088,134.88,134.81,59.71914081]
[1750689858214,42.38,134.88,134.83,8.04880088]
[1750689858414,42.38,134.88,134.85,7.4121]
[1750689858714,2.3712,134.92,134.85,8.04880088]
[1750689858918,52.21630278,134.94,134.87,8.04310278]
[1750689859119,52.21630278,134.94,134.86,8.04310278]
[1750689859414,7.4093,134.91,134.88,7.4104]
[1750689859713,7.4093,134.91,134.87,8.04369433]
[1750689859921,7.409,134.92,134.87,8.04369433]
[1750689860118,8.04369433,134.93,134.87,8.04369433]
[1750689860519,8.04369433,134.93,134.85,56.17013993]
[1750689860520,42.38,134.94,134.89,8.04369433]
[1750689860821,6.720053,135.01,134.93,8.04369433]
[1750689860822,42.38,134.97,134.93,8.04369433]
[1750689861021,7.4062,134.97,134.93,15.45139433]
[1750689861223,50.42369433,134.99,134.93,8.04369433]
[1750689861621,7.406,134.97,134.94,7.407]
[1750689863016,7.4053,134.98,134.95,15.45049433]
[1750689863826,7.4058,134.97,134.94,15.45089433]
[1750689864219,42.38,135.0,134.94,12.24341341]
[1750689864522,7.405,134.99,134.96,7.4059]
[1750689864721,42.38,135.0,134.94,12.24341341]
[1750689864926,49.7843,135.0,134.97,7.4054]
[1750689865223,42.38,135.0,134.96,12.24341341]
[1750689865424,42.38,135.0,134.97,7.4054]
[1750689865628,42.38,135.0,134.94,12.24341341]
[1750689865825,49.7845,135.0,134.97,7.4058]
[1750689866122,42.38,135.0,134.94,12.24341341]
[1750689866424,49.7846,135.0,134.94,12.24341341]
[1750689866825,42.38,135.0,134.94,12.24341341]
[1750689867027,42.38,135.0,134.96,12.24341341]
[1750689867430,42.38,135.0,134.97,7.4057]
[1750689867631,7.4037,135.01,134.96,12.24341341]
[1750689867930,647.6018,135.05,135.01,7.4033]
[1750689868123,42.36,135.06,135.0,12.24341341]
[1750689868527,7.4016,135.05,135.0,12.24341341]
[1750689869621,54.60341341,135.06,134.97,49.598]
[1750689869823,54.60341341,135.06,134.98,12.24341341]
[1750689870022,7.4034,135.02,134.98,12.24341341]
[1750689870222,12.24341341,135.04,134.97,49.598]
[1750689870523,7.4046,135.0,134.97,47.1422]
[1750689870924,12.24341341,135.04,134.97,47.1422]
[1750689871124,12.24341341,135.04,134.97,44.7937]
[1750689871325,4.1479,135.05,134.96,7.4063]
[1750689871621,7.4045,135.0,134.96,12.24341341]
[1750689872129,7.4045,135.0,134.97,7.4055]
[1750689872627,12.24341341,135.03,134.97,7.4055]
[1750689873025,7.4039,135.01,134.98,7.4052]
[1750689873333,12.24341341,135.03,134.95,12.24341341]